fUSD/lending_fUSD_20250305
["ID","MTS","AMOUNT","RATE_DAILY","PERIOD"]
[355499953,1741205471264,-578.4,0.00012629,2]
[355499954,1741205471274,-1098.23,0.00012629,2]
[355499955,1741205471285,-500.0,0.00012629,2]
[355499956,1741205471295,-500.0,0.00012629,2]
[355499957,1741205471305,-1010.02,0.00012629,2]
[355499958,1741205471316,-783.01,0.00012629,2]
[355499959,1741205471327,-500.0,0.00012629,2]
[355499960,1741205471338,-1300.94,0.00012629,2]
[355499961,1741205471350,-1390.41,0.00012629,2]
[355499962,1741205471360,-500.0,0.00012629,2]
[355499963,1741205471369,-726.01,0.00012629,2]
[355499964,1741205471379,-656.4,0.00012629,2]
[355499965,1741205471389,-2088.91,0.00012629,2]
[355499966,1741205471399,-1307.18,0.00012629,2]
[355499967,1741205471409,-1004.53,0.00012629,2]
[355499968,1741205471418,-500.0,0.00012629,2]
[355499969,1741205471431,-709.04,0.00012629,2]
[355499970,1741205471442,-500.0,0.00012629,2]
[355499971,1741205471453,-7271.24,0.00012629,2]
[355499972,1741205471463,-906.94,0.00012629,2]
[355499973,1741205471473,-676.71,0.00012629,2]
[355499974,1741205471483,-1813.03,0.00012629,2]
[355499975,1741205471493,-606.69,0.00012629,2]
[355499976,1741205471502,-760.04,0.00012629,2]
[355499977,1741205471512,-500.0,0.00012629,2]
[355499978,1741205471522,-500.0,0.00012629,2]
[355499979,1741205471531,-648.09,0.0001263,2]
[355499980,1741205471541,-896.73,0.0001263,2]
[355499981,1741205471551,-992.83,0.0001263,2]
[355499982,1741205471560,-561.56,0.0001263,2]
[355499983,1741205471569,-626.43,0.0001263,2]
[355499984,1741205471579,-664.49,0.0001263,2]
[355499985,1741205471589,-500.0,0.0001263,2]
[355499986,1741205471598,-534.06,0.0001263,2]
[355499987,1741205471608,-661.64,0.0001263,2]
[355499988,1741205471618,-500.0,0.0001263,2]
[355499989,1741205471627,-500.0,0.0001263,2]
[355499990,1741205471638,-500.0,0.0001263,2]
[355499991,1741205471648,-500.0,0.0001263,2]
[355499992,1741205471658,-500.0,0.0001263,2]
[355499993,1741205471667,-500.0,0.0001263,2]
[355499994,1741205471677,-652.98,0.0001263,2]
[355499995,1741205471687,-500.0,0.0001263,2]
[355499996,1741205471697,-500.0,0.0001263,2]
[355499997,1741205471707,-500.0,0.0001263,2]
[355499998,1741205471716,-529.11,0.0001263,2]
[355499999,1741205471726,-155.9,0.0001263,2]
[355500000,1741205471736,-500.0,0.0001263,2]
[355500001,1741205471746,-500.0,0.0001263,2]
[355500002,1741205471755,-872.41,0.0001263,2]
[355500003,1741205471765,-633.63,0.0001263,2]
[355500004,1741205471775,-500.0,0.0001263,2]
[355500005,1741205471784,-609.29,0.0001263,2]
[355500006,1741205471795,-500.0,0.0001263,2]
[355500007,1741205471804,-500.0,0.0001263,2]
[355500008,1741205471814,-1042.3,0.0001263,2]
[355500009,1741205471825,-500.0,0.0001263,2]
[355500010,1741205471834,-500.0,0.0001263,2]
[355500011,1741205471844,-819.01,0.0001263,2]
[355500012,1741205471854,-500.0,0.0001263,2]
[355500013,1741205471864,-1329.95,0.0001263,2]
[355500014,1741205471874,-500.0,0.0001263,2]
[355500015,1741205471884,-723.64,0.0001263,2]
[355500016,1741205471895,-1541.25,0.0001263,2]
[355500017,1741205471904,-500.0,0.0001263,2]
[355500018,1741205471914,-856.39,0.0001263,2]
[355500019,1741205471927,-500.0,0.0001263,2]
[355500020,1741205471936,-2962.85,0.0001263,2]
[355500021,1741205471947,-558.21,0.0001263,2]
[355500022,1741205471958,-500.0,0.0001263,2]
[355500023,1741205471969,-500.0,0.0001263,2]
[355500024,1741205471978,-674.44,0.0001263,2]
[355500025,1741205471987,-500.0,0.0001263,2]
[355500026,1741205471998,-2436.47,0.0001263,2]
[355500027,1741205472009,-500.0,0.0001263,2]
[355500028,1741205472018,-543.45,0.0001263,2]
[355500029,1741205472028,-724.69,0.0001263,2]
[355500030,1741205472038,-500.0,0.0001263,2]
[355500031,1741205472047,-500.0,0.0001263,2]
[355500032,1741205472057,-16591.23,0.0001263,2]
[355500033,1741205472068,-814.85,0.0001263,2]
[355500034,1741205472078,-500.0,0.0001263,2]
[355500035,1741205472088,-500.0,0.0001263,2]
[355500036,1741205472099,-768.97,0.0001263,2]
[355500037,1741205472108,-500.0,0.0001263,2]
[355500038,1741205472118,-601.79,0.0001263,2]
[355500039,1741205472127,-500.0,0.0001263,2]
[355500040,1741205472137,-3062.46,0.0001263,2]
[355500041,1741205472146,-1298.36,0.0001263,2]
[355500042,1741205472156,-546.53,0.0001263,2]
[355500043,1741205472165,-711.68,0.0001263,2]
[355500044,1741205472175,-500.0,0.0001263,2]
[355500045,1741205472186,-500.0,0.0001263,2]
[355500046,1741205472197,-977.45,0.0001263,2]
[355500047,1741205472207,-587.13,0.0001263,2]
[355500048,1741205472217,-500.0,0.0001263,2]
[355500049,1741205472227,-500.0,0.0001263,2]
[355500050,1741205472237,-740.69,0.0001263,2]
[355500051,1741205472247,-500.0,0.0001263,2]
[355500052,1741205472257,-568.43,0.0001263,2]
[355500053,1741205472267,-2289.91,0.0001263,2]
[355500054,1741205472277,-793.8,0.0001263,2]
[355500055,1741205472287,-16980.96,0.0001263,2]
[355500056,1741205472297,-567.31,0.0001263,2]
[355500057,1741205472307,-500.0,0.0001263,2]
[355500058,1741205472317,-500.0,0.0001263,2]
[355500059,1741205472328,-626.95,0.0001263,2]
[355500060,1741205472339,-749.53,0.0001263,2]
[355500061,1741205472349,-500.0,0.0001263,2]
[355500062,1741205472358,-765.83,0.0001263,2]
[355500063,1741205472367,-1988.28,0.0001263,2]
[355500064,1741205472379,-500.0,0.0001263,2]
[355500065,1741205472390,-500.0,0.0001263,2]
[355500066,1741205472399,-717.49,0.0001263,2]
[355500067,1741205472410,-606.13,0.0001263,2]
[355500068,1741205472420,-624.62,0.0001263,2]
[355500069,1741205472432,-883.11,0.0001263,2]
[355500070,1741205472443,-500.0,0.0001263,2]
[355500071,1741205472455,-1378.35,0.0001263,2]
[355500072,1741205472465,-1117.89,0.0001263,2]
[355500073,1741205472475,-725.28,0.0001263,2]
[355500074,1741205472484,-3175.89,0.0001263,2]
[355500075,1741205472494,-802.11,0.0001263,2]
[355500076,1741205472503,-607.89,0.0001263,2]
[355500077,1741205472514,-500.0,0.0001263,2]
[355500078,1741205472525,-1080.27,0.0001263,2]
[355500079,1741205472537,-500.0,0.0001263,2]
[355500080,1741205472550,-500.0,0.0001263,2]
[355500081,1741205472562,-3670.9,0.0001263,2]
[355500082,1741205472572,-1428.15,0.0001263,2]
[355500083,1741205472583,-970.94,0.0001263,2]
[355500084,1741205472593,-2257.33,0.0001263,2]
[355500085,1741205472603,-561.77,0.0001263,2]
[355500086,1741205472613,-500.0,0.0001263,2]
[355500087,1741205472623,-773.72,0.0001263,2]
[355500088,1741205472633,-2754.03,0.0001263,2]
[355500089,1741205472643,-500.0,0.0001263,2]
[355500090,1741205472652,-1986.3,0.0001263,2]
[355500091,1741205472662,-500.0,0.0001263,2]
[355500092,1741205472671,-548.21,0.0001263,2]
[355500093,1741205472681,-500.0,0.0001263,2]
[355500094,1741205472691,-1109.28,0.0001263,2]
[355500095,1741205472702,-599.55,0.0001263,2]
[355500096,1741205472712,-500.0,0.0001263,2]
[355500097,1741205472722,-801.3,0.0001263,2]
[355500098,1741205472732,-527.25,0.0001263,2]
[355500099,1741205472742,-500.0,0.0001263,2]
[355500100,1741205472752,-522.39814327,0.0001263,2]
[355500101,1741205472762,-1609.54,0.0001263,2]
[355500102,1741205472772,-500.0,0.0001263,2]
[355500103,1741205472782,-500.0,0.0001263,2]
[355500104,1741205472792,-1428.6,0.0001263,2]
[355500105,1741205472802,-5380.77,0.0001263,2]
[355500106,1741205472812,-821.99,0.0001263,2]
[355500107,1741205472822,-1272.62,0.0001263,2]
[355500108,1741205472832,-1234.64,0.0001263,2]
[355500109,1741205472842,-3674.78,0.0001263,2]
[355500110,1741205472852,-845.47,0.0001263,2]
[355500111,1741205472862,-1046.94,0.0001263,2]
[355500112,1741205472872,-714.38,0.0001263,2]
[355500113,1741205472882,-1025.38,0.0001263,2]
[355500114,1741205472892,-591.13,0.0001263,2]
[355500115,1741205472903,-500.0,0.0001263,2]
[355500116,1741205472913,-925.21,0.0001263,2]
[355500117,1741205472926,-673.63,0.0001263,2]
[355500118,1741205472936,-1235.82,0.0001263,2]
[355500119,1741205472947,-500.0,0.0001263,2]
[355500120,1741205472957,-675.94,0.0001263,2]
[355500121,1741205472969,-500.0,0.0001263,2]
[355500122,1741205472979,-2957.67,0.0001263,2]
[355500123,1741205472988,-3571.26,0.0001263,2]
[355500124,1741205472998,-500.0,0.0001263,2]
[355500125,1741205473008,-500.0,0.0001263,2]
[355500126,1741205473018,-662.374718,0.0001263,2]
[355500127,1741205473028,-872.34,0.0001263,2]
[355500128,1741205473038,-612.52,0.0001263,2]
[355500129,1741205473049,-1907.35,0.0001263,2]
[355500130,1741205473059,-5745.98,0.0001263,2]
[355500131,1741205473068,-1028.39,0.0001263,2]
[355500132,1741205473078,-6878.7,0.0001263,2]
[355500133,1741205473088,-500.0,0.0001263,2]
[355500134,1741205473098,-6936.41,0.0001263,2]
[355500135,1741205473108,-841.650641,0.0001263,2]
[355500136,1741205473118,-500.0,0.0001263,2]
[355500137,1741205473128,-1642.26,0.0001263,2]
[355500138,1741205473138,-932.81,0.0001263,2]
[355500139,1741205473148,-2575.51,0.0001263,2]
[355500140,1741205473158,-693.83,0.0001263,2]
[355500141,1741205473167,-1627.56,0.0001263,2]
[355500142,1741205473177,-782.79,0.0001263,2]
[355500143,1741205473187,-500.0,0.0001263,2]
[355500144,1741205473199,-3676.77,0.0001263,2]
[355500145,1741205473209,-500.0,0.0001263,2]
[355500146,1741205473219,-1111.85,0.0001263,2]
[355500147,1741205473229,-2858.59,0.0001263,2]
[355500148,1741205473239,-1259.85,0.0001263,2]
[355500149,1741205473250,-1092.05,0.0001263,2]
[355500150,1741205473260,-632.35,0.0001263,2]
[355500151,1741205473270,-730.16,0.0001263,2]
[355500152,1741205473280,-500.0,0.0001263,2]
[355500153,1741205473290,-1116.48,0.0001263,2]
[355500154,1741205473300,-500.0,0.0001263,2]
[355500155,1741205473312,-849.42,0.0001263,2]
[355500156,1741205473322,-500.97,0.0001263,2]
[355500157,1741205473331,-500.0,0.0001263,2]
[355500158,1741205473341,-1088.52,0.0001263,2]
[355500159,1741205473351,-993.63,0.0001263,2]
[355500160,1741205473361,-778.35,0.0001263,2]
[355500161,1741205473371,-796.9,0.0001263,2]
[355500162,1741205473381,-510.87,0.0001263,2]
[355500163,1741205473391,-500.0,0.0001263,2]
[355500164,1741205473401,-604.2,0.0001263,2]
[355500165,1741205473411,-938.73,0.0001263,2]
[355500166,1741205473420,-3045.86,0.0001263,2]
[355500167,1741205473430,-1020.3,0.0001263,2]
[355500168,1741205473440,-500.0,0.0001263,2]
[355500169,1741205473453,-845.95,0.0001263,2]
[355500170,1741205473463,-760.95,0.0001263,2]
[355500171,1741205473472,-500.0,0.0001263,2]
[355500172,1741205473482,-1359.7,0.0001263,2]
[355500173,1741205473491,-500.0,0.0001263,2]
[355500174,1741205473502,-1074.76,0.0001263,2]
[355500175,1741205473513,-699.94,0.0001263,2]
[355500176,1741205473524,-500.0,0.0001263,2]
[355500177,1741205473842,-976.36,0.0001263,2]
[355500178,1741205473852,-500.0,0.0001263,2]
[355500179,1741205473862,-970.24,0.0001263,2]
[355500180,1741205473872,-1694.26,0.0001263,2]
[355500181,1741205473881,-1011.6,0.0001263,2]
[355500182,1741205473891,-874.5,0.0001263,2]
[355500183,1741205473900,-561.9,0.0001263,2]
[355500184,1741205473910,-2039.27,0.0001263,2]
[355500185,1741205473922,-539.09,0.0001263,2]
[355500186,1741205473932,-1026.8,0.0001263,2]
[355500187,1741205473943,-500.0,0.00012631,2]
[355500188,1741205473954,-500.0,0.00012631,2]
[355500189,1741205473965,-615.51732389,0.00012631,2]
[355500190,1741205473975,-500.0,0.00012631,2]
[355500191,1741205473984,-500.0,0.00012631,2]
[355500192,1741205473993,-500.0,0.00012631,2]
[355500193,1741205474003,-519.09,0.00012631,2]
[355500194,1741205474013,-500.0,0.00012631,2]
[355500195,1741205474022,-500.0,0.00012631,2]
[355500196,1741205474032,-502.88,0.00012631,2]
[355500197,1741205474041,-500.0,0.00012631,2]
[355500198,1741205474051,-500.0,0.00012631,2]
[355500199,1741205474060,-500.0,0.00012631,2]
[355500200,1741205474070,-500.0,0.00012631,2]
[355500201,1741205474079,-501.28106876,0.00012631,2]
[355500202,1741205474089,-500.0,0.00012631,2]
[355500203,1741205474099,-500.0,0.00012631,2]
[355500204,1741205474108,-500.0,0.00012631,2]
[355500205,1741205474118,-500.0,0.00012631,2]
[355500206,1741205474127,-500.0,0.00012631,2]
[355500207,1741205474136,-500.0,0.00012631,2]
[355500208,1741205474145,-500.0,0.00012631,2]
[355500209,1741205474154,-500.0,0.00012631,2]
[355500210,1741205474163,-546.46842624,0.00012631,2]
[355500211,1741205474173,-516.2,0.00012631,2]
[355500212,1741205474183,-500.0,0.00012631,2]
[355500213,1741205474192,-544.34,0.00012631,2]
[355500214,1741205474204,-500.0,0.00012631,2]
[355500215,1741205474214,-500.0,0.00012631,2]
[355500216,1741205474223,-746.05,0.00012631,2]
[355500217,1741205474233,-500.0,0.00012631,2]
[355500218,1741205474242,-500.0,0.00012631,2]
[355500219,1741205474252,-636.69,0.00012631,2]
[355500220,1741205474261,-552.02,0.00012631,2]
[355500221,1741205474271,-500.0,0.00012631,2]
[355500222,1741205474281,-500.0,0.00012631,2]
[355500223,1741205474291,-500.0,0.00012631,2]
[355500224,1741205474302,-500.0,0.00012631,2]
[355500225,1741205474312,-500.0,0.00012631,2]
[355500226,1741205474321,-500.0,0.00012631,2]
[355500227,1741205474330,-500.0,0.00012631,2]
[355500228,1741205474340,-500.0,0.00012631,2]
[355500229,1741205474350,-500.0,0.00012631,2]
[355500230,1741205474362,-500.0,0.00012631,2]
[355500231,1741205474371,-500.0,0.00012631,2]
[355500232,1741205474381,-500.0,0.00012631,2]
[355500233,1741205474391,-874.96,0.00012631,2]
[355500234,1741205474401,-500.0,0.00012631,2]
[355500235,1741205474411,-652.99,0.00012631,2]
[355500236,1741205474421,-773.98,0.00012631,2]
[355500237,1741205474432,-1280.62,0.00012631,2]
[355500238,1741205474443,-500.0,0.00012631,2]
[355500239,1741205474453,-869.22,0.00012631,2]
[355500240,1741205474463,-500.0,0.00012631,2]
[355500241,1741205474472,-518.43,0.00012631,2]
[355500242,1741205474482,-500.0,0.00012631,2]
[355500243,1741205474491,-890.97,0.00012631,2]
[355500244,1741205474500,-744.45,0.00012631,2]
[355500245,1741205474510,-803.34,0.00012631,2]
[355500246,1741205474520,-500.0,0.00012631,2]
[355500247,1741205474537,-667.83,0.00012631,2]
[355500248,1741205474546,-500.0,0.00012631,2]
[355500249,1741205474555,-500.0,0.00012631,2]
[355500250,1741205474565,-914.76,0.00012631,2]
[355500251,1741205474575,-500.0,0.00012631,2]
[355500252,1741205474584,-709.91,0.00012631,2]
[355500253,1741205474594,-565.64,0.00012631,2]
[355500254,1741205474604,-500.0,0.00012631,2]
[355500255,1741205474613,-662.57,0.00012631,2]
[355500256,1741205474622,-1061.8,0.00012631,2]
[355500257,1741205474631,-503.78,0.00012631,2]
[355500258,1741205474641,-836.1,0.00012631,2]
[355500259,1741205474651,-1411.23,0.00012631,2]
[355500260,1741205474661,-704.33,0.00012631,2]
[355500261,1741205474671,-1374.74,0.00012631,2]
[355500262,1741205474684,-663.46,0.00012631,2]
[355500263,1741205474694,-882.89,0.00012631,2]
[355500264,1741205474708,-500.0,0.00012631,2]
[355500265,1741205474718,-1264.68,0.00012631,2]
[355500266,1741205474729,-500.0,0.00012631,2]
[355500267,1741205474740,-1075.79,0.00012631,2]
[355500268,1741205474750,-747.25,0.00012631,2]
[355500269,1741205474760,-500.0,0.00012631,2]
[355500270,1741205474769,-539.15,0.00012631,2]
[355500271,1741205474779,-500.0,0.00012631,2]
[355500272,1741205474787,-500.0,0.00012631,2]
[355500273,1741205474796,-784.27,0.00012631,2]
[355500274,1741205474804,-500.0,0.00012631,2]
[355500275,1741205474814,-500.0,0.00012631,2]
[355500276,1741205474823,-500.0,0.00012631,2]
[355500277,1741205474833,-785.71,0.00012631,2]
[355500278,1741205474842,-1773.97,0.00012631,2]
[355500279,1741205474852,-500.0,0.00012632,2]
[355500280,1741205474861,-1216.22,0.00012674,2]
[355500281,1741205474870,-421.47259468,0.00012684,2]
[355500282,1741205474880,-219.92367324,0.000127,2]
[355500283,1741205474889,-188.16812391,0.000127,2]
[355500284,1741205474899,-830.48,0.00012731,2]
[355500285,1741205474908,-1000.0,0.0001278,2]
[355500286,1741205474918,-2000.0,0.000128,2]
[355500287,1741205474931,-1000.0,0.000128,2]
[355500288,1741205474941,-1000.0,0.000128,2]
[355500289,1741205474951,-1000.0,0.000128,2]
[355500290,1741205474961,-1000.0,0.000128,2]
[355500291,1741205474971,-1000.0,0.000128,2]
[355500292,1741205474980,-1000.0,0.000128,2]
[355500293,1741205474989,-1000.0,0.000128,2]
[355500294,1741205475000,-1015.8621,0.000128,2]
[355500295,1741205475012,-1000.0,0.000128,2]
[355500296,1741205475021,-1000.0,0.000128,2]
[355500297,1741205475031,-1000.0,0.00012848,2]
[355500298,1741205475041,-500.0,0.00012849,2]
[355500299,1741205475051,-8500.0,0.0001285,2]
[355500300,1741205475061,-8500.0,0.00012859,2]
[355500301,1741205475070,-8500.0,0.00012868,2]
[355500302,1741205475080,-8500.0,0.00012868,2]
[355500303,1741205475090,-299.26481434,0.0001287,2]
[355500304,1741205475099,-8500.0,0.00012876,2]
[355500305,1741205475108,-8500.0,0.00012876,2]
[355500306,1741205475118,-500.0,0.0001288,2]
[355500307,1741205475128,-171.89818383,0.00012883,2]
[355500308,1741205475138,-1061.0,0.00012884,2]
[355500309,1741205475147,-8500.0,0.00012885,2]
[355500310,1741205475156,-8500.0,0.00012885,2]
[355500311,1741205475165,-10141.85,0.00012893,2]
[355500312,1741205475175,-1773.97,0.00012893,2]
[355500313,1741205475185,-8500.0,0.00012894,2]
[355500314,1741205475195,-602.36276657,0.00012894,2]
[355500315,1741205475207,-8500.0,0.00012894,2]
[355500316,1741205475218,-421.47259468,0.000129,2]
[355500317,1741205475228,-288.15905501,0.000129,2]
[355500318,1741205475239,-171.94361463,0.000129,2]
[355500319,1741205475250,-16928.80258293,0.000129,2]
[355500320,1741205475260,-680.78,0.00012903,2]
[355500321,1741205475271,-578.4,0.00012903,2]
[355500322,1741205475281,-1098.23,0.00012903,2]
[355500323,1741205475291,-500.0,0.00012903,2]
[355500324,1741205475301,-500.0,0.00012903,2]
[355500325,1741205475311,-1010.02,0.00012903,2]
[355500326,1741205475322,-783.01,0.00012903,2]
[355500327,1741205475333,-500.0,0.00012903,2]
[355500328,1741205475343,-1300.94,0.00012903,2]
[355500329,1741205475355,-1390.41,0.00012903,2]
[355500330,1741205475365,-500.0,0.00012903,2]
[355500331,1741205475375,-726.01,0.00012903,2]
[355500332,1741205475386,-656.4,0.00012903,2]
[355500333,1741205475398,-2088.91,0.00012903,2]
[355500334,1741205475408,-1307.18,0.00012903,2]
[355500335,1741205475419,-1004.53,0.00012903,2]
[355500336,1741205475430,-500.0,0.00012903,2]
[355500337,1741205475440,-709.04,0.00012903,2]
[355500338,1741205475452,-500.0,0.00012903,2]
[355500339,1741205475462,-7271.24,0.00012903,2]
[355500340,1741205475472,-906.94,0.00012903,2]
[355500341,1741205475482,-676.71,0.00012903,2]
[355500342,1741205475493,-1813.03,0.00012903,2]
[355500343,1741205475503,-606.69,0.00012903,2]
[355500344,1741205475513,-760.04,0.00012903,2]
[355500345,1741205475523,-500.0,0.00012903,2]
[355500346,1741205475533,-500.0,0.00012903,2]
[355500347,1741205475542,-648.09,0.00012904,2]
[355500348,1741205475552,-896.73,0.00012904,2]
[355500349,1741205475562,-992.83,0.00012904,2]
[355500350,1741205475571,-561.56,0.00012904,2]
[355500351,1741205475581,-626.43,0.00012904,2]
[355500352,1741205475591,-664.49,0.00012904,2]
[355500353,1741205475602,-500.0,0.00012904,2]
[355500354,1741205475612,-534.06,0.00012904,2]
[355500355,1741205475622,-661.64,0.00012904,2]
[355500356,1741205475633,-500.0,0.00012904,2]
[355500357,1741205475643,-500.0,0.00012904,2]
[355500358,1741205475653,-500.0,0.00012904,2]
[355500359,1741205475663,-500.0,0.00012904,2]
[355500360,1741205475675,-500.0,0.00012904,2]
[355500361,1741205475685,-500.0,0.00012904,2]
[355500362,1741205475695,-652.98,0.00012904,2]
[355500363,1741205475707,-500.0,0.00012904,2]
[355500364,1741205475718,-500.0,0.00012904,2]
[355500365,1741205475728,-500.0,0.00012904,2]
[355500366,1741205475738,-529.11,0.00012904,2]
[355500367,1741205475748,-500.0,0.00012904,2]
[355500368,1741205475758,-500.0,0.00012904,2]
[355500369,1741205475768,-872.41,0.00012904,2]
[355500370,1741205475778,-633.63,0.00012904,2]
[355500371,1741205475788,-500.0,0.00012904,2]
[355500372,1741205475799,-609.29,0.00012904,2]
[355500373,1741205475810,-500.0,0.00012904,2]
[355500374,1741205475820,-500.0,0.00012904,2]
[355500375,1741205475831,-1042.3,0.00012904,2]
[355500376,1741205475841,-500.0,0.00012904,2]
[355500377,1741205475851,-354.18532072,0.00012904,2]
[355500378,1741205475861,-819.01,0.00012904,2]
[355500379,1741205475872,-500.0,0.00012904,2]
[355500380,1741205475882,-1329.95,0.00012904,2]
[355500381,1741205475893,-500.0,0.00012904,2]
[355500382,1741205475903,-723.64,0.00012904,2]
[355500383,1741205475912,-1541.25,0.00012904,2]
[355500384,1741205475925,-500.0,0.00012904,2]
[355500385,1741205475935,-856.39,0.00012904,2]
[355500386,1741205475945,-500.0,0.00012904,2]
[355500387,1741205475963,-2962.85,0.00012904,2]
[355500388,1741205475974,-558.21,0.00012904,2]
[355500389,1741205475986,-500.0,0.00012904,2]
[355500390,1741205475998,-500.0,0.00012904,2]
[355500391,1741205476011,-674.44,0.00012904,2]
[355500392,1741205476022,-500.0,0.00012904,2]
[355500393,1741205476034,-2436.47,0.00012904,2]
[355500394,1741205476045,-500.0,0.00012904,2]
[355500395,1741205476057,-543.45,0.00012904,2]
[355500396,1741205476068,-724.69,0.00012904,2]
[355500397,1741205476079,-500.0,0.00012904,2]
[355500398,1741205476090,-525.0522209,0.00012904,2]
[355500399,1741205476100,-16591.23,0.00012904,2]
[355500400,1741205476110,-814.85,0.00012904,2]
[355500401,1741205476122,-500.0,0.00012904,2]
[355500402,1741205476137,-500.0,0.00012904,2]
[355500403,1741205476147,-768.97,0.00012904,2]
[355500404,1741205476158,-500.0,0.00012904,2]
[355500405,1741205476168,-601.79,0.00012904,2]
[355500406,1741205476176,-500.0,0.00012904,2]
[355500407,1741205476185,-3062.46,0.00012904,2]
[355500408,1741205476194,-1298.36,0.00012904,2]
[355500409,1741205476206,-546.53,0.00012904,2]
[355500410,1741205476214,-711.68,0.00012904,2]
[355500411,1741205476223,-500.0,0.00012904,2]
[355500412,1741205476233,-500.0,0.00012904,2]
[355500413,1741205476311,-977.45,0.00012904,2]
[355500414,1741205476321,-587.13,0.00012904,2]
[355500415,1741205476332,-500.0,0.00012904,2]
[355500416,1741205476341,-534.40953645,0.00012904,2]
[355500417,1741205476351,-740.69,0.00012904,2]
[355500418,1741205476360,-500.0,0.00012904,2]
[355500419,1741205476371,-568.43,0.00012904,2]
[355500420,1741205476381,-2289.91,0.00012904,2]
[355500421,1741205476390,-793.8,0.00012904,2]
[355500422,1741205476399,-16980.96,0.00012904,2]
[355500423,1741205476409,-567.31,0.00012904,2]
[355500424,1741205476418,-395.38560912,0.00012904,2]
[355500425,1741205476428,-364.38457915,0.00012904,2]
[355500426,1741205476438,-626.95,0.00012904,2]
[355500427,1741205476447,-749.53,0.00012904,2]
[355500428,1741205476459,-500.0,0.00012904,2]
[355500429,1741205476468,-765.83,0.00012904,2]
[355500430,1741205476477,-1988.28,0.00012904,2]
[355500431,1741205476487,-347.94380556,0.00012904,2]
[355500432,1741205476498,-500.0,0.00012904,2]
[355500433,1741205476509,-717.49,0.00012904,2]
[355500434,1741205476520,-606.13,0.00012904,2]
[355500435,1741205476530,-624.62,0.00012904,2]
[355500436,1741205476550,-883.11,0.00012904,2]
[355500437,1741205476569,-500.0,0.00012904,2]
[355500438,1741205476579,-1378.35,0.00012904,2]
[355500439,1741205476589,-1117.89,0.00012904,2]
[355500440,1741205476601,-725.28,0.00012904,2]
[355500441,1741205476612,-802.11,0.00012904,2]
[355500442,1741205476621,-3175.89,0.00012904,2]
[355500443,1741205476631,-607.89,0.00012904,2]
[355500444,1741205476641,-500.0,0.00012904,2]
[355500445,1741205476652,-1080.27,0.00012904,2]
[355500446,1741205476662,-500.0,0.00012904,2]
[355500447,1741205476671,-500.0,0.00012904,2]
[355500448,1741205476680,-3670.9,0.00012904,2]
[355500449,1741205476689,-1428.15,0.00012904,2]
[355500450,1741205476698,-970.94,0.00012904,2]
[355500451,1741205476709,-2257.33,0.00012904,2]
[355500452,1741205476719,-561.77,0.00012904,2]